bitfinex-derivatives/quotes_BTCF0:USTF0_20240829
["timestamp","ask_amount","ask_price","bid_price","bid_amount"]
[1724947000908,0.3646,60787.0,60774.0,0.082242]
[1724947000909,0.082234,60781.0,60774.0,0.082242]
[1724947001205,0.082238,60778.0,60775.0,0.1034]
[1724947002001,0.082238,60778.0,60775.0,0.11148913]
[1724947002500,0.088238,60778.0,60775.0,0.11148913]
[1724947003198,0.006,60778.0,60775.0,0.13814675]
[1724947003912,0.006,60778.0,60773.0,0.308144]
[1724947003913,0.72304,60776.0,60773.0,0.2259]
[1724947004209,0.082243,60774.0,60773.0,0.2259]
[1724947004412,0.082243,60774.0,60773.0,0.2532001]
[1724947004711,0.44304,60776.0,60773.0,0.2532001]
[1724947005004,0.3608,60801.0,60788.0,0.082224]
[1724947005202,0.1133,60802.0,60788.0,1.45432]
[1724947005203,0.0038,60802.0,60788.0,1.45432]
[1724947005404,0.3608,60806.0,60796.0,0.082213]
[1724947005705,0.3608,60806.0,60797.0,0.082211]
[1724947006007,0.3608,60806.0,60795.0,0.00024678]
[1724947006205,0.3608,60806.0,60799.0,0.082208]
[1724947007700,3.74,60805.0,60799.0,0.082208]
[1724947008097,0.082202,60804.0,60796.0,0.1092]
[1724947008311,0.082204,60803.0,60796.0,0.1092]
[1724947008513,0.082204,60803.0,60799.0,0.001]
[1724947008700,0.3608,60800.0,60799.0,0.001]
[1724947008900,0.443008,60800.0,60799.0,0.001]
[1724947009100,0.3608,60800.0,60799.0,0.001]
[1724947009302,0.00024678,60808.0,60799.0,0.85424]
[1724947009502,0.00024678,60808.0,60806.0,0.3608]
[1724947009707,0.00024678,60808.0,60807.0,0.2085]
[1724947010110,0.00024678,60808.0,60807.0,0.784058]
[1724947010304,3.74024678,60808.0,60807.0,0.784058]
[1724947010505,0.3608,60818.0,60817.0,0.082185]
[1724947011006,4.1008,60818.0,60817.0,0.082185]
[1724947011310,3.74,60818.0,60817.0,0.442985]
[1724947011803,3.74,60818.0,60817.0,0.3608]
[1724947012106,3.74,60818.0,60813.0,0.1091]
[1724947012107,3.74,60818.0,60816.0,0.02628894]
[1724947012310,0.082185,60817.0,60813.0,0.1091]
[1724947012901,3.75488,60818.0,60813.0,0.02680268]
[1724947013100,3.75488,60818.0,60811.0,0.00024678]
[1724947013101,0.3608,60815.0,60811.0,0.00024678]
[1724947013310,0.08219,60814.0,60811.0,0.00024678]
[1724947013610,0.082191,60813.0,60811.0,0.00024678]
[1724947013803,0.082191,60812.0,60811.0,0.00024678]
[1724947014912,0.081191,60812.0,60811.0,0.00024678]
[1724947015911,0.095191,60812.0,60811.0,0.00124678]
[1724947016430,0.014,60812.0,60811.0,0.00124678]
[1724947017115,0.014,60812.0,60811.0,0.36204678]
[1724947017312,0.014,60812.0,60811.0,0.44423978]
[1724947017717,3.754,60812.0,60811.0,0.36204678]
[1724947018319,3.836191,60812.0,60811.0,0.36204678]
[1724947018910,3.836191,60812.0,60811.0,0.00124678]
[1724947020517,3.836191,60812.0,60811.0,0.36204678]
[1724947020722,3.754,60812.0,60811.0,0.36204678]
[1724947022823,3.836191,60812.0,60811.0,0.36204678]
[1724947023527,0.082206,60801.0,60800.0,0.36232]
[1724947023712,0.082206,60801.0,60800.0,0.38180602]
[1724947024310,3.822206,60801.0,60800.0,0.38180602]
[1724947024818,3.822206,60801.0,60800.0,0.38280602]
[1724947024819,3.829206,60801.0,60800.0,0.38280602]
[1724947025419,3.747,60801.0,60800.0,0.38280602]
[1724947025621,3.747,60801.0,60800.0,0.46501402]
[1724947026120,3.829206,60801.0,60800.0,0.38280602]
[1724947027524,3.74,60801.0,60800.0,0.46401402]
[1724947027829,3.751,60801.0,60800.0,0.46501402]
[1724947028428,3.749,60801.0,60800.0,0.46501402]
[1724947028722,0.009,60801.0,60800.0,0.47314976]
[1724947029127,3.749,60801.0,60800.0,0.47314976]
[1724947029327,3.749,60801.0,60800.0,0.46501402]
[1724947030220,3.749,60801.0,60800.0,0.38280602]
[1724947030432,3.831206,60801.0,60800.0,0.38280602]
[1724947031727,3.749,60801.0,60800.0,0.46501402]
[1724947031928,3.749,60801.0,60800.0,0.47344028]
[1724947032726,3.749,60801.0,60800.0,0.96684028]
[1724947032922,3.749,60801.0,60800.0,1.64904828]
[1724947033117,0.00024678,60807.0,60806.0,0.082199]
[1724947033318,0.1086,60819.0,60814.0,0.082187]
[1724947033527,3.74,60818.0,60811.0,0.3608]
[1724947033727,3.74,60818.0,60808.0,0.082197]
[1724947033927,0.082189,60815.0,60808.0,0.082197]
[1724947034423,0.082189,60815.0,60809.0,0.082195]
[1724947034917,0.082189,60815.0,60806.0,0.3618]
[1724947034918,0.082194,60811.0,60806.0,0.443999]
[1724947035120,0.082196,60809.0,60806.0,0.3608]
[1724947035426,0.082196,60809.0,60805.0,0.00024678]
[1724947035621,0.082186,60816.0,60808.0,0.3608]
[1724947035822,0.082192,60812.0,60808.0,0.3618]
[1724947036119,0.014,60815.0,60808.0,0.3618]
[1724947036822,0.082195,60809.0,60808.0,0.3618]
[1724947037022,0.20462656,60809.0,60808.0,0.001]
[1724947037218,0.2046281,60809.0,60808.0,0.001]
[1724947037622,0.081199,60806.0,60805.0,0.00024678]
[1724947037828,0.1214371,60806.0,60805.0,0.00024678]
[1724947038225,3.8614371,60806.0,60805.0,0.00024678]
[1724947038619,3.9436361,60806.0,60805.0,0.00024678]
[1724947039426,0.082207,60801.0,60797.0,0.02194083]
[1724947039626,0.1224461,60800.0,60790.0,0.08222]
[1724947039824,0.082217,60794.0,60790.0,0.08222]
[1724947040023,0.081217,60794.0,60790.0,0.10417801]
[1724947040223,0.081217,60794.0,60791.0,0.3608]
[1724947040820,0.081217,60794.0,60790.0,0.02195801]
[1724947041026,0.081217,60794.0,60787.0,0.181925]
[1724947041225,0.082217,60793.0,60787.0,0.20392381]
[1724947041629,0.082217,60793.0,60792.0,0.3608]
[1724947042437,0.082217,60793.0,60790.0,0.002]
[1724947042730,0.082217,60793.0,60787.0,0.20892381]
[1724947043632,0.082221,60791.0,60787.0,0.12669881]
[1724947044431,3.74,60790.0,60787.0,0.12669881]
[1724947044635,3.74,60790.0,60789.0,0.082222]
[1724947044828,3.74,60790.0,60787.0,0.12169881]
[1724947045222,3.74,60790.0,60787.0,0.20392381]
[1724947045732,3.74,60790.0,60787.0,0.20892381]
[1724947046528,3.74,60790.0,60788.0,0.082224]
[1724947048834,0.082222,60789.0,60788.0,0.004]
[1724947049530,0.00024678,60799.0,60789.0,0.082222]
[1724947049732,0.0038,60806.0,60798.0,0.7216]
[1724947049932,0.3608,60822.0,60806.0,0.36]
[1724947050132,3.74,60821.0,60813.0,0.7208]
[1724947050337,3.74,60821.0,60814.0,0.0979]
[1724947050538,3.74,60821.0,60815.0,0.00812517]
[1724947050931,0.00024678,60824.0,60820.0,0.3608]
[1724947051229,0.00024678,60824.0,60814.0,0.10614359]
[1724947051437,0.00024678,60824.0,60814.0,0.18833159]
[1724947051735,0.00024678,60824.0,60818.0,0.3608]
[1724947051940,0.011,60821.0,60818.0,0.3608]
[1724947052831,0.082178,60822.0,60818.0,0.3608]
[1724947053951,0.01124678,60824.0,60818.0,0.3608]
[1724947054627,0.011,60821.0,60818.0,0.3618]
[1724947055539,0.09342278,60824.0,60818.0,0.3618]
[1724947055928,0.08218,60821.0,60818.0,0.001]
[1724947056240,0.082182,60819.0,60818.0,0.001]
[1724947056638,0.3608,60819.0,60814.0,0.02146567]
[1724947056838,0.08219,60813.0,60812.0,0.00024678]
[1724947057234,3.82219,60813.0,60812.0,0.00024678]
[1724947057846,0.082201,60805.0,60793.0,0.3608]
[1724947058043,0.082201,60805.0,60800.0,0.3608]
[1724947058234,0.081201,60805.0,60800.0,0.443007]
[1724947058435,3.82219,60813.0,60801.0,0.082206]
[1724947058642,0.082197,60809.0,60802.0,0.082205]
[1724947059137,0.004,60805.0,60802.0,0.082205]
[1724947059532,0.004,60805.0,60803.0,0.082203]
[1724947059736,0.004,60805.0,60804.0,0.082202]
[1724947059936,0.011,60809.0,60804.0,0.082202]
[1724947060245,0.011,60809.0,60805.0,0.3608]
[1724947061242,0.011,60809.0,60808.0,0.082197]
[1724947061637,0.00024678,60812.0,60810.0,0.082193]
[1724947061837,0.00024678,60812.0,60811.0,0.082193]
[1724947062044,0.00024678,60812.0,60811.0,0.389293]
[1724947062238,0.00024678,60812.0,60811.0,0.184893]
[1724947063339,0.00024678,60812.0,60805.0,0.48865636]
[1724947063546,0.01324678,60812.0,60811.0,0.001]
[1724947064549,0.09543778,60812.0,60811.0,0.001]
[1724947065045,0.01224678,60812.0,60805.0,0.38279636]
[1724947065246,0.082198,60807.0,60805.0,0.38279636]
[1724947065451,0.082199,60806.0,60805.0,0.38279636]
[1724947065745,0.082199,60806.0,60805.0,0.38179636]
[1724947065949,0.081199,60806.0,60805.0,0.38179636]
[1724947066141,0.081199,60806.0,60805.0,0.02099636]
[1724947066341,0.081199,60806.0,60800.0,0.1058]
[1724947066342,0.3608,60807.0,60800.0,0.1058]
[1724947066846,0.082203,60804.0,60800.0,0.20915738]
[1724947067536,0.3608,60807.0,60800.0,0.12695138]
[1724947067742,0.082202,60805.0,60800.0,0.12695138]
[1724947068049,0.081202,60805.0,60800.0,0.20915938]
[1724947068351,0.082202,60804.0,60800.0,0.20915938]
[1724947068850,0.082202,60804.0,60800.0,0.21015938]
[1724947069050,0.091198,60807.0,60801.0,0.082206]
[1724947069251,0.091198,60807.0,60802.0,0.1006]
[1724947069650,0.009,60804.0,60802.0,0.1006]
[1724947069951,0.009,60804.0,60803.0,0.542904]
[1724947070148,0.009,60804.0,60803.0,1.036304]
[1724947070351,0.009,60804.0,60803.0,1.636304]
[1724947071056,0.00024678,60812.0,60811.0,0.082193]
[1724947071252,0.00024678,60812.0,60811.0,0.442993]
[1724947072753,0.01424678,60812.0,60811.0,0.443993]
[1724947072952,0.01424678,60812.0,60811.0,0.723993]
[1724947073144,0.01424678,60812.0,60811.0,1.217313]
[1724947073849,0.01424678,60812.0,60811.0,1.817313]
[1724947074152,0.6865,60827.0,60811.0,1.75613897]
[1724947074153,0.768671,60827.0,60811.0,1.75613897]
[1724947074348,0.082173,60826.0,60820.0,0.44298]
[1724947074548,0.3608,60827.0,60821.0,0.082179]
[1724947074852,0.3608,60827.0,60824.0,0.082174]
[1724947075150,0.3608,60827.0,60826.0,0.082172]
[1724947075653,3.74096001,60829.0,60826.0,0.442972]
[1724947075954,3.74,60829.0,60826.0,0.442972]
[1724947076252,0.00024678,60832.0,60828.0,0.082168]
[1724947076460,0.00024678,60832.0,60826.0,0.3608]
[1724947076644,0.08241078,60832.0,60826.0,0.3608]
[1724947076846,0.08241078,60832.0,60826.0,0.3618]
[1724947077149,0.00024678,60832.0,60827.0,0.08217]
[1724947077746,0.08241178,60832.0,60827.0,0.08217]
[1724947078941,0.00024678,60832.0,60827.0,0.02103674]
[1724947079145,0.00024678,60832.0,60826.0,0.3618]
[1724947079146,0.082171,60827.0,60826.0,0.001]
[1724947079349,0.3608,60830.0,60821.0,0.4636]
[1724947079546,0.3608,60830.0,60827.0,0.001]
[1724947080949,0.16434,60828.0,60827.0,0.001]
[1724947081349,0.082178,60823.0,60821.0,0.48556193]
[1724947081552,0.081178,60823.0,60821.0,0.48556193]
[1724947081746,0.164356,60822.0,60821.0,0.02196193]
[1724947081953,0.082181,60820.0,60819.0,0.00024678]
[1724947082153,0.525162,60820.0,60819.0,0.00024678]
[1724947082351,0.441981,60820.0,60819.0,0.00024678]
[1724947082550,4.181981,60820.0,60819.0,0.00024678]
[1724947082757,4.181981,60820.0,60819.0,0.44322878]
[1724947082758,3.74,60820.0,60819.0,0.44322878]
[1724947083263,3.74,60820.0,60819.0,0.36204678]
[1724947083645,3.822181,60820.0,60819.0,0.36204678]
[1724947085053,3.74,60820.0,60819.0,0.36204678]
[1724947085560,3.822181,60820.0,60819.0,0.36204678]
[1724947090061,3.986543,60820.0,60819.0,0.00124678]
[1724947091062,3.904362,60820.0,60819.0,0.00124678]
[1724947092350,3.986543,60820.0,60819.0,0.00124678]
[1724947092558,3.986543,60820.0,60808.0,0.0038]
[1724947092559,0.16439,60809.0,60808.0,0.0038]
[1724947092754,0.3608,60809.0,60800.0,0.4639]
[1724947092954,0.1028,60808.0,60800.0,0.48527523]
[1724947093258,0.082218,60792.0,60788.0,0.3608]
[1724947093564,0.3608,60794.0,60788.0,0.38178019]
[1724947093766,0.1053,60793.0,60788.0,0.38178019]
[1724947093950,3.74,60792.0,60788.0,0.38178019]
[1724947094157,0.08222,60791.0,60788.0,0.38178019]
[1724947094358,3.74088,60792.0,60788.0,0.02098019]
[1724947094657,3.74088,60792.0,60778.0,0.4677]
[1724947094658,0.85332,60789.0,60778.0,0.0038]
[1724947094861,0.082224,60788.0,60776.0,0.02166722]
[1724947095162,0.3608,60785.0,60770.0,0.0038]
[1724947095360,0.3608,60785.0,60770.0,0.082248]
[1724947095361,0.076235,60780.0,60770.0,0.082248]
[1724947095662,0.082236,60779.0,60771.0,0.00024678]
[1724947096356,0.00411258,60778.0,60771.0,0.00024678]
[1724947096558,0.00411258,60777.0,60775.0,0.3821137]
[1724947096759,0.00411258,60776.0,60775.0,0.7429137]
[1724947098258,0.00811258,60776.0,60775.0,0.7429137]
[1724947098460,0.004,60776.0,60775.0,0.7429137]
[1724947098868,0.004,60776.0,60775.0,1.9187547]
[1724947099055,0.00811255,60776.0,60775.0,1.9187547]
[1724947099774,0.00024678,60784.0,60775.0,1.8365137]
[1724947100068,0.0041122,60783.0,60781.0,0.3608]
[1724947100271,0.00024678,60784.0,60781.0,0.3608]
[1724947100465,0.082231,60783.0,60781.0,0.3608]
[1724947100765,0.00024678,60784.0,60781.0,0.3608]
[1724947101156,0.00124678,60784.0,60781.0,0.3608]
[1724947101561,0.10094678,60784.0,60781.0,0.3608]
[1724947101969,0.082232,60782.0,60781.0,0.3608]
[1724947103071,0.00724678,60784.0,60781.0,0.3608]
[1724947103366,0.00724678,60784.0,60783.0,0.082231]
[1724947104864,0.00924678,60784.0,60783.0,0.082231]
[1724947105765,0.00424678,60784.0,60783.0,0.082231]
[1724947106069,0.082232,60782.0,60781.0,0.3608]
[1724947106371,0.082232,60782.0,60771.0,0.36280678]
[1724947106372,0.082236,60779.0,60771.0,0.44329278]
[1724947106576,0.00424678,60784.0,60771.0,0.44329278]
[1724947106577,0.082237,60778.0,60771.0,0.44329278]
[1724947106872,0.082237,60778.0,60772.0,0.082245]
[1724947107073,0.3608,60781.0,60771.0,0.38303879]
[1724947107258,0.3608,60781.0,60774.0,0.082242]
[1724947107259,0.443034,60781.0,60774.0,0.082242]
[1724947108076,0.082234,60781.0,60775.0,0.082241]
[1724947108261,0.443034,60781.0,60775.0,0.082241]
[1724947109066,0.002,60782.0,60776.0,0.3608]
[1724947109470,0.002,60782.0,60776.0,0.44304]
[1724947109968,0.002,60782.0,60780.0,0.082234]
[1724947110669,0.00024678,60784.0,60780.0,0.082234]
[1724947110874,0.00024678,60784.0,60776.0,0.3608]
[1724947111169,0.00024678,60784.0,60783.0,0.082231]
[1724947112464,0.00024678,60784.0,60783.0,1.536591]
[1724947112768,0.00024678,60784.0,60783.0,1.618822]
[1724947113075,1e-08,60784.0,60783.0,1.619822]
[1724947113271,1e-08,60784.0,60783.0,1.899822]
[1724947113468,0.0038,60797.0,60796.0,0.082213]
[1724947113670,0.1059,60803.0,60799.0,0.082208]
[1724947113868,0.00411143,60802.0,60795.0,0.3608]
[1724947114167,3.74411143,60801.0,60795.0,0.3608]
[1724947114368,0.00411143,60800.0,60795.0,0.3608]
[1724947114868,0.00411148,60800.0,60795.0,0.3608]
[1724947115473,0.00411148,60799.0,60795.0,0.3608]
[1724947115674,0.00411148,60798.0,60795.0,0.3608]
[1724947115872,0.00411148,60797.0,60795.0,0.38191873]
[1724947116063,0.08221,60799.0,60795.0,0.38191873]
[1724947116269,0.00411151,60798.0,60795.0,0.38191873]
[1724947116576,0.00411151,60797.0,60795.0,0.02111873]
[1724947116772,0.082217,60793.0,60792.0,0.00024678]
[1724947116978,0.08632851,60793.0,60792.0,0.00024678]
[1724947117274,0.3608,60794.0,60792.0,0.00024678]
[1724947117464,0.443009,60800.0,60793.0,0.082217]
[1724947117663,0.082209,60799.0,60793.0,0.082217]
[1724947117865,0.3608,60800.0,60794.0,0.082216]
[1724947118068,0.3608,60800.0,60793.0,0.3608]
[1724947118375,0.00411169,60799.0,60794.0,0.1059]
[1724947118970,0.00411167,60798.0,60794.0,0.1059]
[1724947119572,0.00411167,60797.0,60794.0,0.1059]
[1724947119765,0.00411167,60796.0,60794.0,0.1059]
[1724947119978,0.08632069,60799.0,60794.0,0.1059]
[1724947119979,0.00411167,60795.0,60794.0,0.188116]
[1724947121079,0.00024678,60805.0,60804.0,0.082202]
[1724947121277,0.082181,60820.0,60805.0,0.082201]
[1724947121278,0.0038,60820.0,60805.0,0.082201]
[1724947121480,0.3608,60822.0,60813.0,0.6408]
[1724947121676,3.822178,60822.0,60814.0,0.082188]
[1724947121974,3.822178,60822.0,60813.0,0.36256]
[1724947122171,3.822178,60822.0,60813.0,0.3608]
[1724947122367,3.822178,60822.0,60813.0,0.442989]
[1724947122368,0.082179,60821.0,60813.0,0.442989]
[1724947123077,0.082183,60819.0,60813.0,0.38215154]
[1724947123582,0.082183,60818.0,60813.0,0.38215154]
[1724947124283,0.082185,60817.0,60813.0,0.38215154]
[1724947124772,0.082185,60817.0,60813.0,0.38315154]
[1724947125375,0.082186,60816.0,60813.0,0.38315154]
[1724947125771,0.082189,60814.0,60813.0,0.02235154]
[1724947125971,0.082189,60814.0,60811.0,0.00024678]
[1724947125972,0.082191,60812.0,60811.0,0.00024678]
[1724947126178,0.442991,60812.0,60811.0,0.02148449]
[1724947126374,0.525182,60812.0,60811.0,0.00024678]
[1724947126575,4.849802,60812.0,60811.0,0.00024678]
[1724947127577,0.082205,60802.0,60801.0,0.38265326]
[1724947127984,0.081205,60802.0,60801.0,0.38265326]
[1724947128286,3.821205,60802.0,60801.0,0.38265326]
[1724947128782,3.821205,60802.0,60801.0,0.38365326]
[1724947131078,3.821205,60802.0,60801.0,0.02285326]
[1724947131479,3.822205,60802.0,60801.0,0.02285326]
[1724947131797,3.741,60802.0,60801.0,0.10505926]
[1724947132089,3.741,60802.0,60801.0,0.02285326]
[1724947132691,3.823205,60802.0,60801.0,0.02285326]
[1724947132988,3.822205,60802.0,60801.0,0.02185326]
[1724947133184,3.823205,60802.0,60801.0,0.001]
[1724947134776,0.081208,60800.0,60799.0,0.008406]
[1724947134982,0.08221,60799.0,60795.0,0.20971848]
[1724947135884,0.08121,60798.0,60795.0,0.20971848]
[1724947136887,0.08121,60798.0,60795.0,0.12750448]
[1724947137397,0.082207,60801.0,60797.0,0.3608]
[1724947137890,0.002,60799.0,60797.0,0.3608]
[1724947138486,0.084209,60799.0,60797.0,0.3608]
[1724947138677,0.082209,60799.0,60797.0,0.3618]
[1724947138877,0.08221,60798.0,60797.0,0.001]
[1724947139479,0.003,60799.0,60797.0,0.001]
[1724947139789,0.08221,60798.0,60797.0,0.001]
[1724947140395,0.003,60799.0,60797.0,0.001]
[1724947140601,0.003,60799.0,60798.0,0.08221]
[1724947141292,3.74084,60802.0,60796.0,0.3608]
[1724947141485,0.00024678,60808.0,60801.0,0.3608]
[1724947141690,0.00024678,60808.0,60807.0,0.082198]
[1724947141899,0.49360678,60808.0,60806.0,0.3608]
[1724947142083,4.78696,60807.0,60800.0,0.3608]
[1724947142288,0.3608,60805.0,60800.0,0.3608]
[1724947142491,0.0998,60804.0,60800.0,0.3608]
[1724947142688,0.0998,60804.0,60798.0,0.001]
[1724947142892,0.0988,60804.0,60795.0,0.1272312]
[1724947143092,0.3608,60799.0,60795.0,0.1272312]
[1724947145097,0.3598,60799.0,60795.0,0.1272312]
[1724947145890,0.3618,60799.0,60795.0,0.1272312]
[1724947147498,3.74,60798.0,60795.0,0.1272312]
[1724947148796,3.744,60798.0,60795.0,0.1272312]
[1724947154695,3.744,60798.0,60795.0,0.2094452]
[1724947155805,3.744,60798.0,60795.0,0.5702452]
[1724947156099,0.45613399,60810.0,60807.0,0.082198]
[1724947156406,0.3257,60810.0,60807.0,0.45138306]
[1724947156593,4.0657,60810.0,60807.0,0.45138306]
[1724947156903,4.06654,60810.0,60807.0,0.45138306]
[1724947157290,0.32654,60810.0,60807.0,0.45138306]
[1724947157488,0.3257,60810.0,60807.0,0.45138306]
[1724947157907,4.0657,60810.0,60807.0,0.45138306]
[1724947158198,4.06662,60810.0,60807.0,0.45138306]
[1724947158503,4.06662,60810.0,60802.0,0.3608]
[1724947158802,0.0948,60809.0,60802.0,0.3608]
[1724947158995,0.00124678,60808.0,60807.0,0.001]
[1724947159195,0.64148711,60808.0,60807.0,0.001]
[1724947159393,0.53484711,60808.0,60807.0,0.001]
[1724947159603,0.00124678,60808.0,60807.0,0.001]
[1724947159792,0.00024678,60808.0,60807.0,0.01997787]
[1724947159992,0.00024678,60808.0,60802.0,0.539304]
[1724947160200,0.00024678,60808.0,60802.0,0.4571]
[1724947160396,0.00024678,60808.0,60802.0,0.55919757]
[1724947160589,0.00024678,60808.0,60804.0,0.082202]
[1724947161506,0.00124678,60808.0,60807.0,0.001]
[1724947162305,0.00124678,60808.0,60804.0,0.001]
[1724947163195,0.00124678,60808.0,60807.0,0.001]
[1724947163399,0.36204678,60808.0,60807.0,0.001]
[1724947164702,0.00024678,60808.0,60804.0,0.082202]
[1724947165007,0.00124678,60808.0,60804.0,0.001]
[1724947165505,0.00024678,60808.0,60802.0,0.38069257]
[1724947165804,0.00124678,60808.0,60807.0,0.001]
[1724947166303,0.00024678,60808.0,60802.0,0.01989257]
[1724947166521,0.00024678,60808.0,60804.0,0.001]
[1724947166522,0.3608,60806.0,60804.0,0.001]
[1724947168492,1.13364479,60805.0,60795.0,0.00024678]
[1724947168795,0.3608,60796.0,60795.0,0.00024678]
[1724947169001,4.14104479,60796.0,60795.0,0.00024678]
[1724947169904,4.14104911,60796.0,60795.0,0.00024678]
[1724947170810,4.1008,60796.0,60795.0,0.00024678]
[1724947172100,4.0998,60796.0,60795.0,0.00024678]
[1724947173400,4.1018,60796.0,60795.0,0.00024678]
[1724947174806,4.1018,60796.0,60795.0,0.08246078]
[1724947175012,4.1018,60796.0,60795.0,0.00024678]
[1724947176607,3.747,60796.0,60795.0,0.44326078]
[1724947177106,3.747,60796.0,60795.0,1.53670078]
[1724947177411,0.00024678,60808.0,60803.0,0.082202]
[1724947177599,0.00024678,60808.0,60803.0,0.09056584]
[1724947177904,3.74,60807.0,60803.0,0.09056584]
[1724947178408,3.74,60807.0,60803.0,0.00836384]
[1724947178608,3.74,60807.0,60806.0,0.442999]
[1724947178910,3.74,60807.0,60806.0,0.4513505]
[1724947179708,3.74,60807.0,60806.0,0.3691515]
[1724947180109,3.74,60807.0,60806.0,0.3701515]
[1724947180110,3.749,60807.0,60806.0,0.3701515]
[1724947180708,3.749,60807.0,60806.0,0.4523505]
[1724947181206,3.749,60807.0,60806.0,0.39057458]
[1724947181404,3.749,60807.0,60806.0,0.02977458]
[1724947181612,3.749,60807.0,60806.0,0.02142308]
[1724947181807,3.748,60807.0,60806.0,0.02142308]
[1724947182003,3.75311105,60807.0,60806.0,0.02242308]
[1724947183010,3.749,60807.0,60806.0,0.02242308]
[1724947183303,3.749,60807.0,60806.0,0.38322308]
[1724947183507,3.75311104,60807.0,60806.0,0.38322308]
[1724947185004,3.75311104,60807.0,60806.0,0.02242308]
[1724947185206,4.44147104,60807.0,60799.0,0.3608]
[1724947185397,0.3608,60800.0,60795.0,0.00024678]
[1724947185600,0.09941104,60799.0,60795.0,0.00024678]
[1724947185807,0.00411104,60798.0,60795.0,0.02028905]
[1724947186007,3.74,60797.0,60784.0,0.0038]
[1724947186201,0.3608,60793.0,60783.0,0.3626]
[1724947186404,0.3608,60793.0,60783.0,0.3608]
[1724947186703,0.091,60792.0,60783.0,0.38118992]
[1724947187210,0.00411207,60791.0,60784.0,0.008]
[1724947187506,0.00411207,60790.0,60784.0,0.008]
[1724947187713,0.00411207,60789.0,60784.0,0.008]
[1724947187904,0.00411207,60788.0,60784.0,0.008]
[1724947188100,0.00411207,60787.0,60784.0,0.008]
[1724947188412,0.00411207,60786.0,60784.0,0.008]
[1724947188619,0.00411207,60785.0,60784.0,0.008]
[1724947188813,0.00411207,60785.0,60783.0,0.39018992]
[1724947188999,0.091,60792.0,60784.0,0.00388793]
[1724947189000,0.3608,60788.0,60784.0,0.00388793]
[1724947189204,0.00411236,60787.0,60784.0,0.00388793]
[1724947189409,0.00411236,60786.0,60784.0,0.00388793]
[1724947189613,0.00411236,60785.0,60784.0,0.01188793]
[1724947189813,0.0928,60786.0,60784.0,0.016]
[1724947190111,0.001,60785.0,60784.0,0.008]
[1724947190312,0.00511271,60785.0,60784.0,0.008]
[1724947190906,0.001,60785.0,60784.0,0.008]
[1724947191419,0.001,60785.0,60783.0,0.02938992]
[1724947191715,0.001,60785.0,60784.0,0.007]
[1724947192106,0.0948,60786.0,60784.0,0.015]
[1724947192307,0.001,60785.0,60784.0,0.015]
[1724947192608,0.001,60785.0,60784.0,0.50056]
[1724947192910,0.00024678,60794.0,60787.0,0.082225]
[1724947193112,0.00024678,60794.0,60790.0,0.3608]
[1724947193816,0.00024678,60794.0,60788.0,0.0954]
[1724947194019,0.36104678,60794.0,60788.0,0.0954]
[1724947194711,0.36104678,60794.0,60788.0,0.4562]
[1724947195412,0.00024678,60794.0,60788.0,0.4562]
[1724947195919,0.00024678,60794.0,60788.0,0.4592]
[1724947196312,0.00024678,60794.0,60788.0,0.4622]
[1724947201622,0.00024678,60794.0,60792.0,0.06551609]
[1724947202107,0.00024678,60794.0,60792.0,0.06301609]
[1724947202306,3.74084,60797.0,60792.0,0.06301609]
[1724947202507,3.74,60797.0,60794.0,0.3608]
[1724947203714,0.00024678,60802.0,60794.0,0.3608]
[1724947204111,0.3608,60795.0,60785.0,0.0038]
[1724947204317,0.3608,60795.0,60777.0,0.4577]
[1724947204318,0.1928,60794.0,60777.0,0.1007]
[1724947204523,0.1928,60794.0,60777.0,0.0038]
[1724947204726,0.0982,60793.0,60777.0,0.0038]
[1724947205020,0.3608,60795.0,60774.0,0.0038]
[1724947205322,0.00024678,60802.0,60794.0,0.3608]
[1724947206322,0.36104678,60802.0,60794.0,0.3608]
[1724947206621,0.0041115,60801.0,60794.0,0.3608]
[1724947207719,0.0041115,60801.0,60790.0,0.3608]
[1724947207925,0.3608,60796.0,60786.0,0.3608]
[1724947208318,0.3583,60796.0,60786.0,0.3608]
[1724947208523,0.0071115,60801.0,60791.0,0.3608]
[1724947208731,0.003,60801.0,60797.0,0.3608]
[1724947209320,0.00024678,60802.0,60800.0,0.56]
[1724947209531,0.44299,60814.0,60800.0,0.28818609]
[1724947209730,0.082181,60820.0,60812.0,0.28]
[1724947210019,0.082181,60820.0,60819.0,0.28]
[1724947210223,0.46368511,60823.0,60814.0,0.3608]
[1724947210411,0.3608,60818.0,60812.0,0.00024678]
[1724947210614,0.08219,60813.0,60812.0,0.00024678]
[1724947210813,0.08630092,60813.0,60812.0,0.00024678]
[1724947211023,1.17962092,60813.0,60812.0,0.00024678]
[1724947211227,1.53942092,60813.0,60812.0,0.00024678]
[1724947212027,1.55142092,60813.0,60812.0,0.00224678]
[1724947212420,1.54731,60813.0,60812.0,0.00224678]
[1724947213024,1.55142129,60813.0,60812.0,0.00224678]
[1724947213819,1.55142129,60813.0,60812.0,0.0266877]
[1724947214228,0.95142129,60813.0,60812.0,0.0266877]
[1724947214525,0.01611129,60813.0,60812.0,0.10861386]
[1724947214831,0.01611129,60813.0,60812.0,0.10864337]
[1724947215021,0.01611129,60813.0,60812.0,0.23386797]
[1724947215224,0.01611129,60813.0,60812.0,0.23388188]
[1724947215422,0.01611129,60813.0,60812.0,0.10865728]
[1724947215721,0.01611129,60813.0,60812.0,0.23388513]
[1724947215921,0.01611129,60813.0,60812.0,0.23387591]
[1724947216129,0.01611129,60813.0,60812.0,0.0266877]
[1724947216324,1.19162129,60813.0,60812.0,0.0266877]
[1724947216727,1.18751,60813.0,60812.0,0.0266877]
[1724947216915,1.19162142,60813.0,60812.0,0.0266877]
[1724947217117,0.09830142,60813.0,60812.0,0.0266877]
[1724947217319,0.01611142,60813.0,60812.0,0.0266877]